bitfinex/quotes_BTCUSD_20250204
["timestamp","ask_amount","ask_price","bid_price","bid_amount"]
[1738678364870,0.151803,98813.0,98797.0,0.151825]
[1738678365168,0.151803,98813.0,98786.0,0.24196936]
[1738678365169,0.08072939,98817.0,98798.0,0.10238506]
[1738678365366,0.151798,98815.0,98798.0,0.10238506]
[1738678365574,0.151804,98812.0,98799.0,0.02542151]
[1738678365775,0.151806,98811.0,98800.0,0.10238506]
[1738678365926,0.151806,98810.0,98800.0,0.10238506]
[1738678366132,0.20253559,98817.0,98800.0,0.10238506]
[1738678366133,0.202404,98813.0,98800.0,0.10238506]
[1738678366575,0.00014159,98817.0,98800.0,0.10238506]
[1738678366780,0.151797,98816.0,98800.0,0.14804977]
[1738678367284,0.00014159,98817.0,98800.0,0.14804977]
[1738678367527,0.151797,98816.0,98800.0,0.14804977]
[1738678367733,0.00014159,98817.0,98800.0,0.14804977]
[1738678367910,0.00014159,98817.0,98800.0,0.10238506]
[1738678368131,0.151801,98814.0,98800.0,0.10238506]
[1738678368273,0.00014159,98817.0,98800.0,0.10238506]
[1738678368475,0.00014159,98817.0,98801.0,0.202427]
[1738678368706,0.00014159,98817.0,98803.0,0.202422]
[1738678368905,0.00014159,98817.0,98804.0,0.13286577]
[1738678369803,0.00014159,98817.0,98805.0,0.151813]
[1738678370014,0.00014159,98817.0,98806.0,0.10238506]
[1738678370568,0.151811,98807.0,98793.0,0.202442]
[1738678370781,0.202409,98810.0,98794.0,0.10238506]
[1738678370983,0.202409,98810.0,98795.0,0.01023851]
[1738678370984,0.15181,98808.0,98795.0,0.01023851]
[1738678371197,0.151811,98807.0,98796.0,0.10238506]
[1738678371404,0.00014159,98817.0,98796.0,0.10238506]
[1738678371670,0.151825,98798.0,98796.0,0.10238506]
[1738678371874,0.151836,98791.0,98772.0,0.0481]
[1738678372077,0.15183,98795.0,98774.0,0.202482]
[1738678372285,0.151835,98792.0,98775.0,0.10238506]
[1738678372494,0.0756,98811.0,98775.0,0.10238506]
[1738678372692,0.151836,98791.0,98777.0,0.151856]
[1738678372891,0.151836,98791.0,98775.0,0.10238506]
[1738678372892,0.151836,98791.0,98778.0,0.29878433]
[1738678373095,0.151835,98791.0,98778.0,0.10238506]
[1738678373402,0.151838,98790.0,98778.0,0.10238506]
[1738678373720,0.151834,98792.0,98778.0,0.25423906]
[1738678373915,0.202432,98799.0,98778.0,0.10238506]
[1738678374119,0.151829,98795.0,98782.0,0.151848]
[1738678374257,0.151834,98792.0,98783.0,0.10238506]
[1738678374862,0.001,98795.0,98783.0,0.10238506]
[1738678375051,0.15184,98788.0,98783.0,0.10238506]
[1738678375249,0.151838,98790.0,98783.0,0.10238506]
[1738678375460,0.151835,98792.0,98783.0,0.10638506]
[1738678375908,0.202435,98798.0,98778.0,0.002]
[1738678375909,0.202433,98798.0,98778.0,0.002]
[1738678376108,0.00944243,98799.0,98778.0,0.002]
[1738678376444,0.0015184,98805.0,98783.0,0.004]
[1738678376646,0.151846,98784.0,98783.0,0.004]
[1738678376849,0.151846,98784.0,98783.0,0.002]
[1738678377324,0.151852,98780.0,98777.0,0.10238506]
[1738678377551,0.151855,98778.0,98777.0,0.10238506]
[1738678377945,0.151855,98778.0,98777.0,0.10252668]
[1738678378379,0.151855,98778.0,98777.0,0.00014162]
[1738678379209,0.230355,98778.0,98777.0,0.00014162]
[1738678379418,0.230355,98778.0,98777.0,0.00314162]
[1738678379644,0.230355,98778.0,98777.0,0.00014162]
[1738678379645,0.151855,98778.0,98777.0,0.00014162]
[1738678380119,0.151852,98781.0,98777.0,0.00014162]
[1738678380320,0.151846,98784.0,98783.0,0.002]
[1738678380877,0.151853,98780.0,98777.0,0.00314162]
[1738678381235,0.202444,98793.0,98778.0,0.01550066]
[1738678381541,0.202414,98808.0,98778.0,0.01550066]
[1738678381542,0.12792939,98807.0,98779.0,0.10238506]
[1738678381793,0.202433,98798.0,98781.0,0.151849]
[1738678381993,0.00956774,98799.0,98782.0,0.10238506]
[1738678382196,0.202433,98798.0,98783.0,0.03234983]
[1738678382398,0.0002245,98799.0,98787.0,0.151841]
[1738678382648,0.0002245,98799.0,98788.0,0.10238506]
[1738678383400,0.0002245,98799.0,98792.0,0.0795]
[1738678383611,0.0002245,98799.0,98798.0,0.151824]
[1738678383846,0.0002245,98799.0,98798.0,0.25420906]
[1738678384316,0.0002245,98799.0,98798.0,0.10238506]
[1738678384531,0.1520475,98799.0,98798.0,0.10238506]
[1738678384847,0.0002245,98799.0,98798.0,0.10238506]
[1738678385999,0.0002245,98799.0,98788.0,0.002]
[1738678386209,0.151838,98789.0,98788.0,0.002]
[1738678386610,0.151855,98778.0,98758.0,0.0483]
[1738678386761,0.151855,98778.0,98753.0,0.0753]
[1738678386967,0.151855,98778.0,98753.0,0.227192]
[1738678387185,0.151855,98778.0,98753.0,0.0753]
[1738678387390,0.15337361,98778.0,98752.0,0.08072939]
[1738678387729,0.151855,98778.0,98754.0,0.151891]
[1738678387859,0.23347369,98778.0,98777.0,0.00114162]
[1738678388057,0.151855,98778.0,98777.0,0.00114162]
[1738678388624,0.15337371,98778.0,98777.0,0.00114162]
[1738678388836,0.45255877,98778.0,98777.0,0.00114162]
[1738678389038,0.45104006,98778.0,98777.0,0.00114162]
[1738678389962,0.348655,98778.0,98777.0,0.00014162]
[1738678390343,0.349655,98778.0,98777.0,0.00014162]
[1738678390759,0.15,98777.0,98747.0,0.151902]
[1738678391090,0.15,98777.0,98748.0,0.13784037]
[1738678391091,0.151888,98757.0,98748.0,0.13784037]
[1738678391412,0.151887,98758.0,98748.0,0.10238506]
[1738678391612,0.15,98777.0,98748.0,0.10238506]
[1738678391613,0.151888,98757.0,98748.0,0.10238506]
[1738678391814,0.003,98778.0,98747.0,0.00047176]
[1738678391976,0.1519,98749.0,98747.0,0.00047176]
[1738678392177,0.00151895,98748.0,98747.0,0.00047176]
[1738678392415,0.1519,98749.0,98748.0,0.005]
[1738678392787,0.1519,98749.0,98747.0,0.00047176]
[1738678393162,0.00151908,98748.0,98747.0,0.00447176]
[1738678393367,0.0015191,98748.0,98747.0,0.00047176]
[1738678394598,0.0015191,98748.0,98747.0,0.00147176]
[1738678394989,0.1515191,98748.0,98747.0,0.00147176]
[1738678395202,0.1515191,98748.0,98747.0,0.00047176]
[1738678396028,0.1525191,98748.0,98747.0,0.00047176]
[1738678396234,0.31066914,98748.0,98747.0,0.00047176]
[1738678396393,0.30915004,98748.0,98747.0,0.00047176]
[1738678396598,0.151,98748.0,98747.0,0.00047176]
[1738678396840,0.15251936,98748.0,98747.0,0.00047176]
[1738678397711,0.25490442,98748.0,98747.0,0.00047176]
[1738678397951,0.25338506,98748.0,98747.0,0.00047176]
[1738678398378,0.32218506,98748.0,98747.0,7.6e-07]
[1738678398582,0.32218506,98748.0,98734.0,0.0017171]
[1738678398583,0.301921,98735.0,98734.0,5e-08]
[1738678398738,0.301921,98735.0,98693.0,0.08072939]
[1738678398739,0.151941,98722.0,98704.0,0.08072939]
[1738678398936,0.40432606,98722.0,98704.0,0.08072939]
[1738678399142,0.40432606,98722.0,98673.0,0.28341739]
[1738678399143,0.48402606,98722.0,98721.0,5e-07]
[1738678399381,0.152003,98682.0,98681.0,0.0001071]
[1738678400878,0.00047147,98682.0,98681.0,0.0001071]
[1738678401158,0.00047147,98682.0,98681.0,0.10449216]
[1738678401808,0.00047147,98682.0,98681.0,0.64659216]
[1738678402011,0.00047147,98682.0,98681.0,0.72669216]
[1738678402443,0.00047147,98682.0,98681.0,0.72569216]
[1738678402646,0.00047147,98682.0,98681.0,0.87569216]
[1738678402786,0.08072939,98710.0,98682.0,0.15]
[1738678402991,0.08072939,98710.0,98689.0,0.10238506]
[1738678403198,0.151967,98706.0,98690.0,0.151989]
[1738678403405,0.28723626,98710.0,98690.0,0.10238506]
[1738678403593,0.202604,98715.0,98690.0,0.10238506]
[1738678403797,0.00151976,98714.0,98690.0,0.10238506]
[1738678404199,0.00151976,98714.0,98691.0,0.10238506]
[1738678404200,0.151972,98702.0,98691.0,0.10238506]
[1738678404406,0.151977,98699.0,98691.0,0.10238506]
[1738678404648,0.202615,98709.0,98691.0,0.10238506]
[1738678404851,0.00151974,98708.0,98690.0,0.009]
[1738678405023,0.151988,98692.0,98690.0,0.009]
[1738678405857,0.151988,98692.0,98691.0,0.001]
[1738678406878,0.151988,98692.0,98691.0,0.009]
[1738678407055,0.151997,98686.0,98684.0,0.0001069]
[1738678408599,0.202646,98695.0,98684.0,0.0001069]
[1738678408600,0.0499,98722.0,98684.0,0.0001069]
[1738678408774,0.06137541,98706.0,98684.0,0.0001069]
[1738678408983,0.151998,98686.0,98684.0,0.0001069]
[1738678410053,0.151998,98686.0,98684.0,0.0061069]
[1738678410529,0.00151997,98685.0,98684.0,0.0011069]
[1738678410942,0.00151997,98685.0,98684.0,0.0041069]
[1738678411353,0.00151997,98685.0,98684.0,0.0011069]
[1738678411948,0.00151997,98685.0,98684.0,0.0001069]
[1738678412329,0.00152013,98685.0,98684.0,0.0001069]
[1738678413656,0.15551825,98686.0,98684.0,0.0001069]
[1738678413861,0.15351825,98686.0,98684.0,0.0001069]
[1738678414066,0.151998,98686.0,98684.0,0.0001069]
[1738678414263,0.002,98685.0,98684.0,0.0001069]
[1738678414708,0.153518,98686.0,98684.0,0.0001069]
[1738678415065,0.155518,98686.0,98684.0,0.0001069]
[1738678415279,0.151998,98686.0,98684.0,0.0001069]
[1738678415702,0.00942176,98697.0,98684.0,0.0011069]
[1738678415904,0.202644,98695.0,98684.0,0.0011069]
[1738678416103,0.151998,98686.0,98684.0,0.0011069]
[1738678416529,0.151998,98686.0,98684.0,0.0021069]
[1738678416748,0.00151997,98685.0,98684.0,0.0021069]
[1738678417106,0.151998,98686.0,98684.0,0.0011069]
[1738678417331,0.00152013,98685.0,98684.0,0.0021069]
[1738678417533,0.00152013,98685.0,98650.0,0.5421]
[1738678417534,0.24758441,98650.0,98591.0,0.3405327]
[1738678417740,0.24758441,98650.0,98649.0,0.28851827]
[1738678418395,0.24758441,98650.0,98649.0,0.10238506]
[1738678418970,0.24772566,98650.0,98649.0,0.10238506]
[1738678419184,0.22872566,98650.0,98649.0,0.10238506]
[1738678420228,0.22872566,98650.0,98649.0,0.10338506]
[1738678421341,0.22872566,98650.0,98649.0,0.11238506]
[1738678421342,0.22972566,98650.0,98649.0,0.11238506]
[1738678421493,0.22872566,98650.0,98649.0,0.10338506]
[1738678422144,0.22872566,98650.0,98649.0,0.10238506]
[1738678422387,0.22972566,98650.0,98649.0,0.11038506]
[1738678424135,0.21072566,98650.0,98649.0,0.11038506]
[1738678425293,0.21072566,98650.0,98649.0,0.10842287]
[1738678425874,0.21072566,98650.0,98649.0,0.10433444]
[1738678426089,0.36277766,98650.0,98649.0,0.10433444]
[1738678426607,0.36277766,98650.0,98649.0,0.008]
[1738678426956,0.21072566,98650.0,98649.0,0.11038506]
[1738678427605,0.21072566,98650.0,98649.0,0.008]
[1738678427948,0.20972566,98650.0,98648.0,0.0001068]
[1738678428146,0.21072566,98650.0,98649.0,0.006]
[1738678428372,0.36277766,98650.0,98649.0,0.006]
[1738678428715,0.152054,98649.0,98648.0,0.0001068]
[1738678428914,0.20972566,98650.0,98648.0,0.0001068]
[1738678429292,0.19072566,98650.0,98648.0,0.0001068]
[1738678429447,0.19072566,98650.0,98649.0,0.004]
[1738678429645,0.19072566,98650.0,98649.0,0.10638506]
[1738678430709,0.19072566,98650.0,98649.0,0.004]
[1738678431042,0.34277766,98650.0,98649.0,0.004]
[1738678431574,0.51998669,98650.0,98649.0,0.004]
[1738678431774,0.45450416,98650.0,98649.0,0.004]
[1738678431949,0.3521191,98650.0,98649.0,0.004]
[1738678432175,0.2000671,98650.0,98648.0,0.0001068]
[1738678432478,0.15357478,98649.0,98648.0,0.0001068]
[1738678432614,0.15357478,98649.0,98648.0,0.0051068]
[1738678433300,0.15357478,98649.0,98648.0,0.0001068]
[1738678433528,0.15357475,98649.0,98648.0,0.0001068]
[1738678433773,0.25595981,98649.0,98648.0,0.0001068]
[1738678434025,0.25443906,98649.0,98648.0,0.0001068]
[1738678434330,0.152068,98640.0,98639.0,1.9071942]
[1738678434542,0.212634,98623.0,98622.0,0.0001068]
[1738678434735,0.302105,98616.0,98615.0,4.013e-05]
[1738678434937,0.302105,98616.0,98615.0,1.3e-07]
[1738678435495,0.432905,98616.0,98615.0,1.3e-07]
[1738678435733,0.53529006,98616.0,98615.0,1.3e-07]
[1738678435937,0.152162,98579.0,98558.0,0.152194]
[1738678436092,0.15,98615.0,98559.0,0.10238506]
[1738678436093,0.152162,98580.0,98559.0,0.10238506]
[1738678436292,0.0001411,98580.0,98559.0,0.10238506]
[1738678436498,0.0001411,98580.0,98560.0,0.01173064]
[1738678436721,0.0001411,98580.0,98562.0,0.30530206]
[1738678436933,0.0001411,98580.0,98563.0,0.355101]
[1738678437255,0.0001411,98580.0,98564.0,0.10238506]
[1738678437471,0.0011411,98580.0,98578.0,0.152162]
[1738678437670,0.0011411,98580.0,98579.0,0.18308506]
[1738678438284,0.0011411,98580.0,98579.0,0.33524706]
[1738678438824,0.0001411,98580.0,98579.0,0.38324706]
[1738678439219,0.08072939,98604.0,98594.0,0.152138]
[1738678439220,0.06287049,98604.0,98594.0,0.152138]
[1738678439400,0.06287049,98604.0,98595.0,0.10238506]
[1738678439535,0.202815,98613.0,98595.0,0.10238506]
[1738678439975,0.202805,98617.0,98596.0,0.01028565]
[1738678440172,0.202805,98617.0,98597.0,0.10238506]
[1738678440373,0.152111,98612.0,98597.0,0.10238506]
[1738678440632,0.354884,98624.0,98600.0,0.152128]
[1738678440790,0.08072939,98629.0,98601.0,0.12788351]
[1738678440791,0.202785,98627.0,98601.0,0.12788351]
[1738678441001,0.08072939,98629.0,98601.0,0.10238506]
[1738678441199,0.152104,98617.0,98601.0,0.10238506]
[1738678441404,0.202808,98615.0,98601.0,0.10238506]
[1738678441603,0.152124,98604.0,98601.0,0.10238506]
[1738678441774,0.15152116,98627.0,98595.0,0.003]
[1738678441975,0.152126,98603.0,98596.0,0.10238506]
[1738678442179,0.15,98626.0,98596.0,0.10238506]
[1738678442459,0.00152121,98625.0,98596.0,0.10238506]
[1738678442663,0.2070495,98620.0,98596.0,0.10238506]
[1738678442873,0.152135,98596.0,98595.0,0.003]
[1738678443075,0.152137,98595.0,98594.0,0.00047147]
[1738678443615,0.15365843,98595.0,98594.0,0.00047147]
[1738678444045,0.152137,98595.0,98594.0,0.00047147]
[1738678444431,0.13465843,98595.0,98594.0,0.00047147]
[1738678445032,0.202785,98627.0,98594.0,0.10785653]
[1738678445225,0.08072939,98612.0,98595.0,0.10238506]
[1738678445382,0.00152111,98611.0,98596.0,0.01078565]
[1738678445705,0.152089,98626.0,98601.0,0.152128]
[1738678445940,0.152089,98626.0,98596.0,0.11317071]
[1738678445941,0.202761,98638.0,98602.0,0.10238506]
[1738678446142,0.39785862,98650.0,98603.0,0.12527357]
[1738678446143,0.19080912,98650.0,98603.0,0.12527357]
[1738678446375,0.152083,98630.0,98605.0,0.405658]
[1738678446583,0.202763,98637.0,98606.0,0.10238506]
[1738678446776,0.00938765,98644.0,98607.0,0.03323231]
[1738678446982,0.20428179,98638.0,98608.0,0.10238506]
[1738678447203,0.08072939,98636.0,98608.0,0.10238506]
[1738678447504,0.152095,98622.0,98608.0,0.10238506]
[1738678447706,0.152109,98614.0,98608.0,0.10238506]
[1738678447925,0.152111,98612.0,98608.0,0.10238506]
[1738678448147,0.1521,98619.0,98608.0,0.10238506]
[1738678448362,0.202763,98637.0,98608.0,0.14881877]
[1738678448574,0.152105,98616.0,98608.0,0.14881877]
[1738678448717,0.152105,98616.0,98608.0,0.10238506]
[1738678448920,0.152102,98618.0,98608.0,0.10538506]
[1738678449172,0.152109,98614.0,98608.0,0.10538506]
[1738678449539,0.00954257,98635.0,98608.0,0.10238506]
[1738678449744,0.152107,98615.0,98608.0,0.10238506]
[1738678449876,0.152119,98607.0,98594.0,0.00047147]
[1738678450094,0.152121,98606.0,98595.0,0.10238506]
[1738678450450,0.202802,98618.0,98595.0,0.10238506]
[1738678450678,0.202817,98611.0,98595.0,0.10238506]
[1738678450856,0.2028,98619.0,98596.0,0.0757]
[1738678451077,0.152131,98599.0,98597.0,0.10238506]
[1738678451281,0.152129,98601.0,98597.0,0.10238506]
[1738678453894,0.24298703,98640.0,98601.0,0.10238506]
[1738678454142,0.202788,98626.0,98601.0,0.10238506]
[1738678454340,0.152108,98614.0,98601.0,0.25451206]
[1738678454568,0.202788,98626.0,98604.0,0.152123]
[1738678454782,0.202788,98625.0,98605.0,0.10238506]
[1738678455009,0.19080912,98650.0,98610.0,0.2070495]
[1738678455207,0.19080912,98650.0,98617.0,0.152103]
[1738678455419,0.00152077,98646.0,98618.0,0.18408506]
[1738678455838,0.202753,98642.0,98618.0,0.18408506]
[1738678456012,0.152085,98629.0,98618.0,0.18408506]
[1738678456213,0.202767,98636.0,98618.0,0.18408506]
[1738678456424,0.00022491,98637.0,98618.0,0.18408506]
[1738678456581,0.00022491,98637.0,98619.0,0.2028]
[1738678456777,0.15229691,98637.0,98621.0,0.202795]
[1738678457039,0.00022491,98637.0,98623.0,0.202792]
[1738678457272,0.152075,98635.0,98624.0,0.10238506]
[1738678457476,0.00022491,98637.0,98625.0,0.03886476]
[1738678457679,0.00022491,98637.0,98636.0,0.152074]
[1738678457877,0.00022491,98637.0,98636.0,0.25445906]
[1738678458294,0.00022491,98637.0,98636.0,0.33325906]
[1738678458499,0.00036658,98637.0,98636.0,0.33325906]
[1738678458699,0.00036658,98637.0,98636.0,0.37214757]
[1738678459313,0.1721757,98650.0,98646.0,0.152058]
[1738678459529,0.1721757,98650.0,98647.0,0.10238506]
[1738678459730,0.1721757,98650.0,98649.0,0.152054]
[1738678459930,0.1721757,98650.0,98649.0,0.29993906]
[1738678460140,0.1721757,98650.0,98649.0,0.33880382]
[1738678461351,0.1721757,98650.0,98649.0,0.57040382]
[1738678461552,0.1721757,98650.0,98649.0,0.59340382]
[1738678461916,0.03954604,98650.0,98649.0,0.60040382]
[1738678462130,0.0257517,98650.0,98649.0,0.60040382]
[1738678462718,0.0257517,98650.0,98649.0,0.38853906]
[1738678463129,0.0257517,98650.0,98649.0,0.38553906]
[1738678463309,0.0257517,98650.0,98649.0,0.23348506]
[1738678463606,0.0257517,98650.0,98649.0,0.10938506]
[1738678464110,0.0257517,98650.0,98649.0,0.11238506]
[1738678464286,0.0067517,98650.0,98649.0,0.13882987]
[1738678464490,0.0067517,98650.0,98649.0,0.13582987]
[1738678464693,0.00549271,98650.0,98649.0,0.26143906]
[1738678464892,0.00549271,98650.0,98649.0,0.28743906]
[1738678465097,0.00549271,98650.0,98649.0,0.40233906]
[1738678465294,0.00549271,98650.0,98649.0,0.37933906]
[1738678465470,0.00549271,98650.0,98649.0,0.38633906]
[1738678465883,0.00549271,98650.0,98649.0,0.37933906]
[1738678466324,0.00275742,98650.0,98649.0,0.55933906]
[1738678466525,0.188,98708.0,98657.0,0.01]
[1738678466526,0.08072939,98707.0,98657.0,0.01]
[1738678466872,0.08072939,98697.0,98696.0,0.151981]
[1738678467036,4e-05,98717.0,98696.0,0.10238506]
[1738678467270,4e-05,98717.0,98697.0,0.10238506]
[1738678467611,0.151961,98710.0,98697.0,0.10238506]
[1738678467803,0.202603,98715.0,98698.0,0.01023851]
[1738678468006,4e-05,98717.0,98699.0,0.10238506]
[1738678468336,0.0001417,98710.0,98699.0,0.10238506]
[1738678468949,0.40523,98709.0,98699.0,0.10238506]
[1738678469150,0.15198,98697.0,98696.0,0.003]
[1738678469922,0.0001417,98710.0,98696.0,0.10538506]
[1738678470207,0.151979,98698.0,98697.0,0.10238506]
[1738678471042,0.151979,98698.0,98697.0,0.10171255]
[1738678471241,0.0001417,98710.0,98697.0,0.10238506]
[1738678471412,0.0001417,98710.0,98698.0,0.10238506]
[1738678471626,0.151975,98700.0,98699.0,0.01023851]
[1738678471952,0.0001417,98710.0,98699.0,0.11262357]
[1738678472131,0.151974,98701.0,98700.0,0.10238506]
[1738678472862,0.0001417,98710.0,98697.0,0.001]
[1738678472863,0.151978,98698.0,98697.0,0.001]
[1738678473067,0.151978,98698.0,98697.0,0.10338506]
[1738678473300,0.151978,98698.0,98697.0,0.001]
[1738678473498,0.151978,98698.0,98660.0,0.2070495]
[1738678473499,0.152009,98678.0,98668.0,0.152023]
[1738678473708,0.152009,98678.0,98670.0,0.10238506]
[1738678473926,0.00151985,98699.0,98663.0,0.20271]
[1738678473927,0.202647,98694.0,98681.0,0.152004]
[1738678474101,0.151999,98685.0,98682.0,0.10238506]
[1738678474301,0.151998,98685.0,98683.0,0.01023851]
[1738678474549,0.151998,98685.0,98684.0,0.10238506]
[1738678474752,0.15213962,98685.0,98684.0,0.10238506]
[1738678475180,0.15213962,98685.0,98660.0,0.2070495]
[1738678475181,0.152025,98668.0,98660.0,0.0763]
[1738678475397,0.202667,98684.0,98667.0,0.10238506]
[1738678475602,0.00014162,98685.0,98668.0,0.01506851]
[1738678475829,0.152015,98675.0,98669.0,0.10238506]
[1738678476261,0.00014162,98685.0,98669.0,0.10238506]
[1738678476444,0.152021,98670.0,98669.0,0.10238506]
[1738678477252,0.202682,98677.0,98669.0,0.10238506]
[1738678477462,0.152,98684.0,98670.0,0.01023851]
[1738678477669,0.00014162,98685.0,98671.0,0.10238506]
[1738678478065,0.00014162,98685.0,98673.0,0.10238506]
[1738678478276,0.00014162,98685.0,98677.0,0.152011]
[1738678478489,0.00014162,98685.0,98678.0,0.10238506]
[1738678478848,0.20280662,98685.0,98678.0,0.10238506]
[1738678479003,0.00014162,98685.0,98678.0,0.10238506]
[1738678479220,0.202661,98687.0,98679.0,0.01023851]
[1738678479417,0.00932358,98710.0,98680.0,0.10238506]
[1738678479624,0.00151967,98716.0,98680.0,0.10238506]
[1738678479821,0.202605,98714.0,98680.0,0.10238506]
[1738678480023,0.00151967,98713.0,98680.0,0.10238506]
[1738678480236,0.152003,98682.0,98681.0,0.01196236]
[1738678480568,0.152003,98682.0,98681.0,0.11434742]
[1738678480884,0.915229,98768.0,98681.0,0.10238506]
[1738678481069,0.00151984,98716.0,98682.0,0.10238506]
[1738678481294,0.152001,98683.0,98682.0,0.10238506]
[1738678482974,0.152001,98683.0,98682.0,0.10438506]
[1738678483540,0.151999,98685.0,98682.0,0.10438506]
[1738678483824,0.202652,98691.0,98682.0,0.10438506]
[1738678484004,0.151999,98685.0,98682.0,0.10438506]
[1738678484201,0.152,98684.0,98683.0,0.01104921]
[1738678484348,0.152,98684.0,98683.0,0.10238506]
[1738678485777,0.00953358,98703.0,98683.0,0.10238506]
[1738678485778,0.20264,98698.0,98683.0,0.10238506]
[1738678485955,0.0002245,98720.0,98682.0,0.002]
[1738678485956,0.20263,98702.0,98684.0,0.10238506]
[1738678486252,0.15198,98698.0,98686.0,0.151996]
[1738678486491,0.15198,98697.0,98687.0,0.14848967]
[1738678486699,0.00014157,98698.0,98687.0,0.14848967]
[1738678486901,0.00014157,98698.0,98688.0,0.079]
[1738678487076,0.00014157,98698.0,98689.0,0.10238506]
[1738678487692,0.15212057,98698.0,98689.0,0.10238506]
[1738678487904,0.00014157,98698.0,98689.0,0.12023938]
[1738678488281,0.00014157,98698.0,98689.0,0.12723938]
[1738678488282,0.151981,98697.0,98689.0,0.12723938]
[1738678488487,0.00014157,98698.0,98689.0,0.12723938]
[1738678488685,0.00014157,98698.0,98697.0,0.25436506]
[1738678488864,0.00014157,98698.0,98697.0,0.10238506]
[1738678489098,0.00014157,98698.0,98697.0,0.11262357]
[1738678489416,0.202624,98705.0,98697.0,0.11262357]
[1738678489553,0.151978,98698.0,98697.0,0.11262357]
[1738678490999,0.55718,98711.0,98697.0,0.11262357]
[1738678491199,0.21243314,98720.0,98697.0,0.11262357]
[1738678491402,0.21243314,98720.0,98689.0,0.02485432]
[1738678491403,0.00151955,98719.0,98689.0,0.02485432]
[1738678491578,0.202603,98715.0,98690.0,0.10238506]
[1738678491796,0.00983914,98720.0,98690.0,0.10238506]
[1738678492174,0.151979,98698.0,98697.0,0.006]
[1738678492373,0.151979,98698.0,98697.0,0.10838506]
[1738678492629,0.151979,98698.0,98697.0,0.10438506]
[1738678492775,0.151979,98698.0,98697.0,0.11282357]
[1738678493238,0.151979,98698.0,98697.0,0.10238506]
[1738678493934,0.151989,98691.0,98690.0,0.006]
[1738678494131,0.151989,98691.0,98690.0,0.10838506]
[1738678494289,0.152004,98681.0,98665.0,0.152029]
[1738678494495,0.152004,98681.0,98680.0,0.10252663]
[1738678494742,0.152004,98681.0,98680.0,0.00014157]
[1738678496420,0.152004,98681.0,98680.0,0.10752663]
[1738678496664,0.152004,98681.0,98680.0,0.11828999]
[1738678497042,0.152004,98681.0,98680.0,0.12028999]
[1738678497267,0.152004,98681.0,98680.0,0.00714157]
[1738678497848,0.152004,98681.0,98680.0,0.10952663]
[1738678499564,0.151994,98688.0,98680.0,0.10952663]
[1738678499801,0.00022428,98698.0,98681.0,0.10238506]
[1738678500545,0.151987,98693.0,98682.0,0.152002]
[1738678500743,0.202644,98696.0,98683.0,0.25438606]
[1738678500951,0.20286428,98698.0,98683.0,0.10238506]
[1738678501150,0.151986,98694.0,98683.0,0.10238506]
[1738678501561,0.00022428,98698.0,98683.0,0.10238506]
[1738678502172,0.00022428,98698.0,98697.0,0.15198]
[1738678502379,0.00022428,98698.0,98697.0,0.48266506]
[1738678502783,0.00022428,98698.0,98697.0,0.55743539]
[1738678503196,0.00022428,98698.0,98697.0,0.53759551]
[1738678503399,0.00022428,98698.0,98697.0,0.52776506]
[1738678503610,0.00022428,98698.0,98697.0,0.40833418]
[1738678504459,0.00022428,98698.0,98697.0,0.41133418]
[1738678504670,0.151953,98715.0,98702.0,0.151971]
[1738678504817,0.151953,98715.0,98703.0,0.25435506]
[1738678505021,0.15,98744.0,98704.0,0.03338981]
[1738678505247,0.08178667,98739.0,98705.0,0.10360053]
[1738678505576,0.151948,98718.0,98706.0,0.151966]
[1738678505774,0.151948,98718.0,98704.0,0.03338981]
[1738678505775,0.151952,98715.0,98707.0,0.10238506]
[1738678505907,0.202574,98729.0,98707.0,0.10238506]
[1738678506128,0.202562,98736.0,98708.0,0.00121547]
[1738678506331,0.00982276,98745.0,98719.0,0.10238506]
[1738678506528,0.202539,98747.0,98720.0,0.00121527]
[1738678506732,0.20253,98751.0,98729.0,0.081]
[1738678506932,0.151912,98742.0,98730.0,0.10360031]
[1738678507181,0.278697,98767.0,98730.0,0.10360031]
[1738678507182,0.00013406,98738.0,98730.0,0.10360031]
[1738678507493,0.00013406,98738.0,98737.0,0.151918]
[1738678507824,0.0457,98769.0,98737.0,0.10360022]
[1738678507956,0.151887,98758.0,98745.0,0.151905]
[1738678508162,0.202498,98766.0,98746.0,0.10360012]
[1738678508367,0.202498,98766.0,98747.0,0.03106496]
[1738678508574,0.00014151,98769.0,98748.0,0.10238506]
[1738678508780,0.202494,98768.0,98748.0,0.10238506]
[1738678509029,0.15188,98762.0,98748.0,0.10360004]
[1738678509198,0.20263551,98769.0,98748.0,0.10238506]
[1738678509199,0.00014151,98769.0,98748.0,0.10238506]
[1738678509359,0.202509,98761.0,98749.0,0.05866982]
[1738678509559,0.151889,98757.0,98750.0,0.10238506]
[1738678509868,0.00014151,98769.0,98750.0,0.10238506]
[1738678510020,0.151887,98758.0,98750.0,0.10238506]
[1738678510190,0.151896,98752.0,98750.0,0.10238506]
[1738678510391,0.151896,98752.0,98751.0,0.01386039]
[1738678510637,0.00014151,98769.0,98751.0,0.11624545]
[1738678510792,0.151891,98755.0,98752.0,0.10238506]
[1738678511037,0.202505,98763.0,98752.0,0.10238506]
[1738678511038,0.151887,98758.0,98752.0,0.10238506]
[1738678511229,0.151888,98757.0,98752.0,0.10238506]
[1738678511428,0.151892,98754.0,98753.0,0.01222455]
[1738678511631,0.202494,98768.0,98753.0,0.09460961]
[1738678511805,0.151882,98761.0,98753.0,0.09460961]
[1738678512022,0.00014151,98769.0,98753.0,0.09460961]
[1738678512495,0.151892,98754.0,98753.0,0.09460961]
[1738678512655,0.00014151,98769.0,98753.0,0.10407057]
[1738678512831,0.151883,98761.0,98753.0,0.10407057]
[1738678513039,0.00014151,98769.0,98753.0,0.10407057]
[1738678513355,0.202494,98768.0,98753.0,0.10407057]
[1738678513568,0.202503,98764.0,98753.0,0.10707057]
[1738678513726,0.151871,98768.0,98754.0,0.02502839]
[1738678513935,0.00014151,98769.0,98764.0,0.151876]
[1738678514128,0.00014151,98769.0,98765.0,0.10238506]
[1738678514493,0.00014151,98769.0,98765.0,0.25426006]
[1738678514697,0.00014151,98769.0,98765.0,0.10238506]
[1738678514911,0.00014151,98769.0,98766.0,0.01846003]
[1738678515111,0.151871,98768.0,98767.0,0.10238506]
[1738678515457,0.151882,98761.0,98757.0,0.03021883]
[1738678515655,0.00014151,98769.0,98759.0,0.202513]
[1738678515899,0.00014151,98769.0,98765.0,0.151874]
[1738678516125,0.00014151,98769.0,98766.0,0.10238506]